fUSD/lending_fUSD_20250629
["ID","MTS","AMOUNT","RATE_DAILY","PERIOD"]
[368470807,1751187080303,-490.0,0.00027945,3]
[368470808,1751187080312,-890.47,0.00027945,3]
[368470809,1751187080322,-939.59,0.00027945,3]
[368470810,1751187080331,-1788.69,0.00027945,3]
[368470811,1751187080340,-510.76545153,0.00027945,3]
[368470812,1751187080349,-1116.9,0.00027945,3]
[368470813,1751187080359,-490.0,0.00027945,3]
[368470814,1751187080368,-490.0,0.00027945,3]
[368470815,1751187080378,-490.0,0.00027945,3]
[368470816,1751187080387,-692.21,0.00027945,3]
[368470817,1751187080397,-490.0,0.00027945,3]
[368470818,1751187080406,-490.0,0.00027945,3]
[368470819,1751187080417,-490.0,0.00027945,3]
[368470820,1751187080427,-1143.36,0.00027945,3]
[368470821,1751187080436,-490.0,0.00027945,3]
[368470822,1751187080446,-490.0,0.00027945,3]
[368470823,1751187080455,-490.0,0.00027945,3]
[368470824,1751187080464,-490.0,0.00027945,3]
[368470825,1751187080474,-490.0,0.00027945,3]
[368470826,1751187080484,-490.0,0.00027945,3]
[368470827,1751187080493,-493.93,0.00027945,3]
[368470828,1751187080502,-490.0,0.00027945,3]
[368470829,1751187080512,-1577.57,0.00027945,3]
[368470830,1751187080521,-490.0,0.00027945,3]
[368470831,1751187080530,-2687.2,0.00027945,3]
[368470832,1751187080544,-300.0,0.00027945,3]
[368470833,1751187080554,-1932.84,0.00027945,3]
[368470834,1751187080563,-536.97,0.00027945,3]
[368470835,1751187080574,-1562.07,0.00027945,3]
[368470836,1751187080583,-807.97,0.00027945,3]
[368470837,1751187080592,-1305.35,0.00027945,3]
[368470838,1751187080601,-523.92,0.00027945,3]
[368470839,1751187080611,-490.0,0.00027945,3]
[368470840,1751187080620,-1501.36,0.00027945,3]
[368470841,1751187080629,-654.29,0.00027945,3]
[368470842,1751187080640,-490.0,0.00027945,3]
[368470843,1751187080649,-1001.7,0.00027945,3]
[368470844,1751187080658,-490.0,0.00027945,3]
[368470845,1751187080667,-2084.79,0.00027945,3]
[368470846,1751187080676,-490.0,0.00027945,3]
[368470847,1751187080685,-490.0,0.00027945,3]
[368470848,1751187080694,-885.31,0.00027945,3]
[368470849,1751187080704,-490.0,0.00027945,3]
[368470850,1751187080713,-490.0,0.00027945,3]
[368470851,1751187080724,-490.0,0.00027945,3]
[368470852,1751187080733,-809.25,0.00027945,3]
[368470853,1751187080742,-1125.0,0.00027945,3]
[368470854,1751187080751,-490.0,0.00027945,3]
[368470855,1751187080761,-2530.68,0.00027945,3]
[368470856,1751187080770,-490.0,0.00027945,3]
[368470857,1751187080779,-490.0,0.00027945,3]
[368470858,1751187080788,-2511.93,0.00027945,3]
[368470859,1751187080797,-362.4236836,0.00027945,3]
[368470860,1751187080807,-1852.56,0.00027945,3]
[368470861,1751187080816,-490.0,0.00027945,3]
[368470862,1751187080825,-1189.53,0.00027945,3]
[368470863,1751187080835,-490.0,0.00027945,3]
[368470864,1751187080843,-2098.5,0.00027945,3]
[368470865,1751187080853,-490.0,0.00027945,3]
[368470866,1751187080862,-490.0,0.00027945,3]
[368470867,1751187080873,-1763.74,0.00027945,3]
[368470868,1751187080882,-500.22371845,0.00027945,3]
[368470869,1751187080893,-490.0,0.00027945,3]
[368470870,1751187080903,-2926.62,0.00027945,3]
[368470871,1751187080913,-796.69,0.00027945,3]
[368470872,1751187080922,-784.47,0.00027945,3]
[368470873,1751187080932,-490.0,0.00027945,3]
[368470874,1751187080941,-490.0,0.00027945,3]
[368470875,1751187080953,-490.0,0.00027945,3]
[368470876,1751187080962,-2622.74,0.00027945,3]
[368470877,1751187080971,-953.55,0.00027945,3]
[368470878,1751187080980,-490.0,0.00027945,3]
[368470879,1751187080989,-1116.23,0.00027945,3]
[368470880,1751187080998,-554.09,0.00027945,3]
[368470881,1751187081008,-1545.25,0.00027945,3]
[368470882,1751187081017,-490.0,0.00027945,3]
[368470883,1751187081026,-490.0,0.00027945,3]
[368470884,1751187081036,-1186.5,0.00027945,3]
[368470885,1751187081046,-490.0,0.00027945,3]
[368470886,1751187081057,-490.0,0.00027945,3]
[368470887,1751187081066,-2764.31,0.00027945,3]
[368470888,1751187081076,-1896.94,0.00027945,3]
[368470889,1751187081085,-744.65,0.00027945,3]
[368470890,1751187081094,-490.0,0.00027945,3]
[368470891,1751187081104,-2779.62,0.00027945,3]
[368470892,1751187081113,-908.21,0.00027945,3]
[368470893,1751187081123,-490.0,0.00027945,3]
[368470894,1751187081132,-614.83,0.00027945,3]
[368470895,1751187081143,-1326.35,0.00027945,3]
[368470896,1751187081152,-499.75,0.00027945,3]
[368470897,1751187081162,-1351.69,0.00027945,3]
[368470898,1751187081171,-490.0,0.00027945,3]
[368470899,1751187081180,-1201.1,0.00027945,3]
[368470900,1751187081189,-630.65,0.00027945,3]
[368470901,1751187081198,-525.16,0.00027945,3]
[368470902,1751187081208,-1263.16,0.00027945,3]
[368470903,1751187081217,-490.0,0.00027945,3]
[368470904,1751187081226,-1335.51,0.00027945,3]
[368470905,1751187081236,-490.0,0.00027945,3]
[368470906,1751187081245,-1116.29,0.00027945,3]
[368470907,1751187081254,-490.0,0.00027945,3]
[368470908,1751187081264,-1682.2,0.00027945,3]
[368470909,1751187081273,-490.0,0.00027945,3]
[368470910,1751187081282,-1558.33,0.00027945,3]
[368470911,1751187081292,-513.76,0.00027945,3]
[368470912,1751187081301,-756.58,0.00027945,3]
[368470913,1751187081310,-490.0,0.00027945,3]
[368470914,1751187081320,-490.0,0.00027945,3]
[368470915,1751187081329,-490.0,0.00027945,3]
[368470916,1751187081338,-853.75,0.00027945,3]
[368470917,1751187081347,-1118.61,0.00027945,3]
[368470918,1751187081357,-1111.13,0.00027945,3]
[368470919,1751187081366,-2433.14,0.00027945,3]
[368470920,1751187081376,-1061.27,0.00027945,3]
[368470921,1751187081387,-972.58,0.00027945,3]
[368470922,1751187081396,-1001.28,0.00027945,3]
[368470923,1751187081406,-490.0,0.00027945,3]
[368470924,1751187081415,-1677.22,0.00027945,3]
[368470925,1751187081425,-228.86572783,0.00027945,3]
[368470926,1751187081434,-490.0,0.00027945,3]
[368470927,1751187081444,-768.88,0.00027945,3]
[368470928,1751187081453,-408.87158192,0.00027945,3]
[368470929,1751187081462,-490.0,0.00027945,3]
[368470930,1751187081471,-636.78,0.00027945,3]
[368470931,1751187081480,-1912.74,0.00027945,3]
[368470932,1751187081489,-490.0,0.00027945,3]
[368470933,1751187081499,-490.0,0.00027945,3]
[368470934,1751187081508,-490.0,0.00027945,3]
[368470935,1751187081517,-490.0,0.00027945,3]
[368470936,1751187081527,-918.29,0.00027945,3]
[368470937,1751187081536,-490.0,0.00027945,3]
[368470938,1751187081545,-1032.86,0.00027945,3]
[368470939,1751187081555,-551.21,0.00027945,3]
[368470940,1751187081564,-490.0,0.00027945,3]
[368470941,1751187081573,-1129.09,0.00027945,3]
[368470942,1751187081583,-2019.22,0.00027945,3]
[368470943,1751187081592,-490.0,0.00027945,3]
[368470944,1751187081601,-490.0,0.00027945,3]
[368470945,1751187081611,-490.76,0.00027945,3]
[368470946,1751187081621,-1204.77,0.00027945,3]
[368470947,1751187081630,-2771.09,0.00027945,3]
[368470948,1751187081642,-490.0,0.00027945,3]
[368470949,1751187081653,-2255.28,0.00027945,3]
[368470950,1751187081663,-490.0,0.00027945,3]
[368470951,1751187081672,-490.0,0.00027945,3]
[368470952,1751187081682,-550.22930701,0.00027945,3]
[368470953,1751187081691,-490.0,0.00027945,3]
[368470954,1751187081701,-200.0,0.00027945,2]
[368470955,1751187081710,-490.0,0.00027945,3]
[368470956,1751187081720,-490.0,0.00027945,3]
[368470957,1751187081729,-565.14,0.00027945,3]
[368470958,1751187081738,-1083.88,0.00027945,3]
[368470959,1751187081748,-570.38,0.00027945,3]
[368470960,1751187081757,-256.83211065,0.00027945,3]
[368470961,1751187081768,-1852.34,0.00027945,3]
[368470962,1751187081777,-490.0,0.00027945,3]
[368470963,1751187081786,-490.0,0.00027945,3]
[368470964,1751187081795,-490.0,0.00027945,3]
[368470965,1751187081805,-1808.6,0.00027945,3]
[368470966,1751187081815,-490.0,0.00027945,3]
[368470967,1751187081824,-490.0,0.00027945,3]
[368470968,1751187081833,-490.0,0.00027945,3]
[368470969,1751187081842,-490.0,0.00027945,3]
[368470970,1751187081852,-688.07,0.00027945,3]
[368470971,1751187081861,-490.0,0.00027945,3]
[368470972,1751187081874,-490.0,0.00027945,3]
[368470973,1751187081883,-626.62,0.00027945,3]
[368470974,1751187081894,-490.0,0.00027945,3]
[368470975,1751187081903,-490.0,0.00027945,3]
[368470976,1751187081912,-1956.43,0.00027945,3]
[368470977,1751187081922,-490.0,0.00027945,3]
[368470978,1751187081931,-490.0,0.00027945,3]
[368470979,1751187081941,-564.79,0.00027945,3]
[368470980,1751187081950,-1164.5,0.00027945,3]
[368470981,1751187081960,-490.0,0.00027945,3]
[368470982,1751187081969,-490.0,0.00027945,3]
[368470983,1751187081979,-1465.83,0.00027945,3]
[368470984,1751187081988,-2046.37,0.00027945,3]
[368470985,1751187081999,-490.0,0.00027945,3]
[368470986,1751187082009,-490.0,0.00027945,3]
[368470987,1751187082019,-1917.1,0.00027945,3]
[368470988,1751187082029,-605.28,0.00027945,3]
[368470989,1751187082038,-490.0,0.00027945,3]
[368470990,1751187082047,-490.0,0.00027945,3]
[368470991,1751187082056,-490.0,0.00027945,3]
[368470992,1751187082066,-490.0,0.00027945,3]
[368470993,1751187082077,-490.0,0.00027945,3]
[368470994,1751187082086,-490.0,0.00027945,3]
[368470995,1751187082096,-531.37,0.00027945,3]
[368470996,1751187082105,-490.0,0.00027945,3]
[368470997,1751187082115,-712.89,0.00027945,3]
[368470998,1751187082125,-612.03,0.00027945,3]
[368470999,1751187082134,-509.81,0.00027945,3]
[368471000,1751187082145,-490.0,0.00027945,3]
[368471001,1751187082154,-490.0,0.00027945,3]
[368471002,1751187082164,-490.0,0.00027945,3]
[368471003,1751187082174,-661.06,0.00027945,3]
[368471004,1751187082183,-689.81,0.00027945,3]
[368471005,1751187082193,-2108.39,0.00027945,3]
[368471006,1751187082203,-490.0,0.00027945,3]
[368471007,1751187082213,-1382.63,0.00027945,3]
[368471008,1751187082223,-490.0,0.00027945,3]
[368471009,1751187082234,-490.0,0.00027945,3]
[368471010,1751187082243,-490.0,0.00027945,3]
[368471011,1751187082253,-1085.27,0.00027945,3]
[368471012,1751187082592,-490.0,0.00027945,3]
[368471013,1751187082602,-490.0,0.00027945,3]
[368471014,1751187082612,-490.0,0.00027945,3]
[368471015,1751187082621,-490.0,0.00027945,3]
[368471016,1751187082631,-1183.19,0.00027945,3]
[368471017,1751187082641,-826.64,0.00027945,3]
[368471018,1751187082651,-602.11,0.00027945,3]
[368471019,1751187082661,-1777.68,0.00027945,3]
[368471020,1751187082670,-1021.3,0.00027945,3]
[368471021,1751187082679,-1107.02,0.00027945,3]
[368471022,1751187082689,-490.0,0.00027945,3]
[368471023,1751187082699,-718.66,0.00027945,3]
[368471024,1751187082708,-490.0,0.00027945,3]
[368471025,1751187082718,-909.83,0.00027945,3]
[368471026,1751187082729,-490.0,0.00027945,3]
[368471027,1751187082739,-490.0,0.00027945,3]
[368471028,1751187082748,-1727.62,0.00027945,3]
[368471029,1751187082757,-490.0,0.00027945,3]
[368471030,1751187082766,-818.3,0.00027945,3]
[368471031,1751187082775,-1024.08,0.00027945,3]
[368471032,1751187082784,-2838.79,0.00027945,3]
[368471033,1751187082794,-490.0,0.00027945,3]
[368471034,1751187082803,-1197.63,0.00027945,3]
[368471035,1751187082812,-534.71923386,0.00027945,3]
[368471036,1751187082821,-490.0,0.00027945,3]
[368471037,1751187082830,-490.0,0.00027945,3]
[368471038,1751187082839,-490.0,0.00027945,3]
[368471039,1751187082849,-490.0,0.00027945,3]
[368471040,1751187082858,-1026.32,0.00027945,3]
[368471041,1751187082869,-1069.08,0.00027945,3]
[368471042,1751187082880,-1087.17,0.00027945,3]
[368471043,1751187082889,-490.0,0.00027945,3]
[368471044,1751187082898,-532.4,0.00027945,3]
[368471045,1751187082908,-490.0,0.00027945,3]
[368471046,1751187082917,-490.0,0.00027945,3]
[368471047,1751187082926,-500.0,0.00027945,3]
[368471048,1751187082935,-747.24,0.00027945,3]
[368471049,1751187082946,-490.0,0.00027945,3]
[368471050,1751187082955,-3147.9,0.00027945,3]
[368471051,1751187082964,-490.0,0.00027945,3]
[368471052,1751187082973,-807.88,0.00027945,3]
[368471053,1751187082983,-490.0,0.00027945,3]
[368471054,1751187082992,-935.05,0.00027945,3]
[368471055,1751187083001,-1197.59,0.00027945,3]
[368471056,1751187083012,-1869.27,0.00027945,3]
[368471057,1751187083021,-490.0,0.00027945,3]
[368471058,1751187083031,-3477.27,0.00027945,3]
[368471059,1751187083040,-490.0,0.00027945,3]
[368471060,1751187083050,-490.0,0.00027945,3]
[368471061,1751187083060,-211.59218876,0.00027945,3]
[368471062,1751187083069,-490.0,0.00027945,3]
[368471063,1751187083078,-490.0,0.00027945,3]
[368471064,1751187083087,-1381.92,0.00027945,3]
[368471065,1751187083096,-490.0,0.00027945,3]
[368471066,1751187083105,-490.0,0.00027945,3]
[368471067,1751187083115,-490.0,0.00027945,3]
[368471068,1751187083125,-6669.48,0.00027945,3]
[368471069,1751187083134,-1377.57,0.00027945,3]
[368471070,1751187083145,-427.24021732,0.00027945,3]
[368471071,1751187083155,-1822.71,0.00027945,3]
[368471072,1751187083165,-490.0,0.00027945,3]
[368471073,1751187083174,-490.0,0.00027945,3]
[368471074,1751187083184,-528.23,0.00027945,3]
[368471075,1751187083193,-490.0,0.00027945,3]
[368471076,1751187083202,-490.0,0.00027945,3]
[368471077,1751187083211,-1746.81,0.00027945,3]
[368471078,1751187083220,-1407.26,0.00027945,3]
[368471079,1751187083229,-503.61,0.00027945,3]
[368471080,1751187083239,-490.0,0.00027945,3]
[368471081,1751187083248,-490.0,0.00027945,3]
[368471082,1751187083258,-2392.16,0.00027945,3]
[368471083,1751187083267,-2697.87,0.00027945,3]
[368471084,1751187083276,-490.0,0.00027945,3]
[368471085,1751187083286,-503.68024749,0.00027945,3]
[368471086,1751187083296,-783.14,0.00027945,3]
[368471087,1751187083306,-490.0,0.00027945,3]
[368471088,1751187083314,-1160.13,0.00027945,3]
[368471089,1751187083324,-9222.48,0.00027945,3]
[368471090,1751187083334,-490.0,0.00027945,3]
[368471091,1751187083343,-392.91300533,0.00027945,3]
[368471092,1751187083352,-550.64,0.00027945,3]
[368471093,1751187083362,-490.0,0.00027945,3]
[368471094,1751187083371,-1931.45,0.00027945,3]
[368471095,1751187083380,-490.0,0.00027945,3]
[368471096,1751187083390,-543.87,0.00027945,3]
[368471097,1751187083398,-713.43,0.00027945,3]
[368471098,1751187083408,-490.0,0.00027945,3]
[368471099,1751187083417,-653.16,0.00027945,3]
[368471100,1751187083428,-131.79278895,0.00027945,3]
[368471101,1751187084041,-697.70154701,0.00027945,3]
[368471102,1751187084055,-2198.44566404,0.00027945,3]
[368471103,1751187084064,-1503.5,0.00027945,3]
[368471104,1751187084074,-647.85,0.00027945,3]
[368471105,1751187084084,-490.0,0.00027945,3]
[368471106,1751187084093,-4436.10783759,0.00027945,3]
[368471107,1751187084114,-1076.83387993,0.00027945,3]
[368471108,1751187084152,-177992.61828248,0.00027945,3]
[368471109,1751187084161,-6987.11,0.00027945,3]
[368471110,1751187084171,-741.54,0.00027945,3]
[368471111,1751187084180,-1190.4,0.00027945,3]
[368471112,1751187084190,-490.0,0.00027945,3]
[368471113,1751187084199,-490.0,0.00027945,3]
[368471114,1751187084208,-490.0,0.00027945,3]
[368471115,1751187084217,-526.36,0.00027945,3]
[368471116,1751187084227,-1619.13,0.00027945,3]
[368471117,1751187084236,-490.0,0.00027945,3]
[368471118,1751187084245,-490.0,0.00027945,3]
[368471119,1751187084255,-490.0,0.00027945,3]
[368471120,1751187084264,-490.0,0.00027945,3]
[368471121,1751187084273,-490.0,0.00027945,3]
[368471122,1751187084283,-2767.26,0.00027945,3]
[368471123,1751187084293,-5529.27,0.00027945,3]
[368471124,1751187084303,-679.97,0.00027945,3]
[368471125,1751187084312,-490.0,0.00027945,3]
[368471126,1751187084322,-1212.51,0.00027945,3]
[368471127,1751187084331,-490.0,0.00027945,3]
[368471128,1751187084340,-490.0,0.00027945,3]
[368471129,1751187084350,-1335.89,0.00027945,3]
[368471130,1751187084360,-22183.76,0.00027945,3]
[368471131,1751187084368,-1879.1,0.00027945,3]
[368471132,1751187084378,-490.0,0.00027945,3]
[368471133,1751187084388,-1016.84,0.00027945,3]
[368471134,1751187084397,-490.0,0.00027945,3]
[368471135,1751187084406,-490.0,0.00027945,3]
[368471136,1751187084416,-490.0,0.00027945,3]
[368471137,1751187084425,-1165.75,0.00027945,3]
[368471138,1751187084435,-490.0,0.00027945,3]
[368471139,1751187084444,-490.0,0.00027945,3]
[368471140,1751187084454,-801.36,0.00027945,3]
[368471141,1751187084463,-1652.83,0.00027945,3]
[368471142,1751187084472,-490.0,0.00027945,3]
[368471143,1751187084481,-888.54,0.00027945,3]
[368471144,1751187084491,-490.0,0.00027945,3]
[368471145,1751187084501,-8978.15,0.00027945,3]
[368471146,1751187084510,-5301.58,0.00027945,3]
[368471147,1751187084520,-490.0,0.00027945,3]
[368471148,1751187084530,-491.81,0.00027945,3]
[368471149,1751187084539,-2725.74,0.00027945,3]
[368471150,1751187084549,-520.38,0.00027945,3]
[368471151,1751187084558,-638.17726632,0.00027945,3]
[368471152,1751187084567,-490.0,0.00027945,3]
[368471153,1751187084576,-879.57,0.00027945,3]
[368471154,1751187084586,-597.55,0.00027945,3]
[368471155,1751187084595,-778.91,0.00027945,3]
[368471156,1751187084604,-800.6,0.00027945,3]
[368471157,1751187084614,-3378.89,0.00027945,3]
[368471158,1751187084623,-490.0,0.00027945,3]
[368471159,1751187084632,-490.0,0.00027945,3]
[368471160,1751187084642,-155.61271801,0.00027945,3]
[368471161,1751187084652,-490.0,0.00027945,3]
[368471162,1751187084746,-490.0,0.00027945,3]
[368471163,1751187084755,-1934.49,0.00027945,3]
[368471164,1751187084765,-490.0,0.00027945,3]
[368471165,1751187084774,-490.0,0.00027945,3]
[368471166,1751187084783,-490.0,0.00027945,3]
[368471167,1751187084793,-490.0,0.00027945,3]
[368471168,1751187084802,-490.0,0.00027945,3]
[368471169,1751187084811,-490.0,0.00027945,3]
[368471170,1751187084819,-1608.13,0.00027945,3]
[368471171,1751187084829,-490.0,0.00027945,3]
[368471172,1751187084839,-490.0,0.00027945,3]
[368471173,1751187084848,-490.0,0.00027945,3]
[368471174,1751187084857,-4109.88,0.00027945,3]
[368471175,1751187084869,-1752.09,0.00027945,3]
[368471176,1751187084883,-490.0,0.00027945,3]
[368471177,1751187084894,-627.49,0.00027945,3]
[368471178,1751187084903,-9420.4,0.00027945,3]
[368471179,1751187084912,-3124.52,0.00027945,3]
[368471180,1751187084922,-490.0,0.00027945,3]
[368471181,1751187084931,-1268.38,0.00027945,3]
[368471182,1751187084941,-1706.25,0.00027945,3]
[368471183,1751187084957,-490.0,0.00027945,3]
[368471184,1751187084966,-490.0,0.00027945,3]
[368471185,1751187084975,-2005.66,0.00027945,3]
[368471186,1751187084985,-2374.12,0.00027945,3]
[368471187,1751187084993,-490.0,0.00027945,3]
[368471188,1751187085004,-490.0,0.00027945,3]
[368471189,1751187085013,-2394.5,0.00027945,3]
[368471190,1751187085022,-1814.02,0.00027945,3]
[368471191,1751187085031,-1023.82,0.00027945,3]
[368471192,1751187085041,-4073.14,0.00027945,3]
[368471193,1751187085051,-490.0,0.00027945,3]
[368471194,1751187085061,-490.0,0.00027945,3]
[368471195,1751187085070,-1650.3315,0.00027945,2]
[368471196,1751187085079,-4329.64,0.00027945,3]
[368471197,1751187085089,-490.0,0.00027945,3]
[368471198,1751187085098,-490.0,0.00027945,3]
[368471199,1751187085107,-490.0,0.00027945,3]
[368471200,1751187085116,-1654.41,0.00027945,3]
[368471201,1751187085125,-490.0,0.00027945,3]
[368471202,1751187085134,-7586.35,0.00027945,3]
[368471203,1751187085144,-490.0,0.00027945,3]
[368471204,1751187085153,-1721.76,0.00027945,3]
[368471205,1751187085164,-1727.96,0.00027945,3]
[368471206,1751187085173,-4567.85,0.00027945,3]
[368471207,1751187085183,-490.0,0.00027945,3]
[368471208,1751187085192,-490.0,0.00027945,3]
[368471209,1751187085202,-490.0,0.00027945,3]
[368471210,1751187085211,-1030.1,0.00027945,3]
[368471211,1751187085219,-879.38,0.00027945,3]
[368471212,1751187085229,-2029.53,0.00027945,3]
[368471213,1751187085237,-2270.02,0.00027945,3]
[368471214,1751187085246,-490.0,0.00027945,3]
[368471215,1751187085256,-490.0,0.00027945,3]
[368471216,1751187085265,-2004.11,0.00027945,3]
[368471217,1751187085274,-490.0,0.00027945,3]
[368471218,1751187085283,-490.0,0.00027945,3]
[368471219,1751187085292,-490.0,0.00027945,3]
[368471220,1751187085301,-3968.04,0.00027945,3]
[368471221,1751187085310,-501.15191575,0.00027945,3]
[368471222,1751187085319,-2902.63,0.00027945,3]
[368471223,1751187085328,-11288.86,0.00027945,3]
[368471224,1751187085337,-5973.21,0.00027945,3]
[368471225,1751187085347,-490.0,0.00027945,3]
[368471226,1751187085356,-2552.32,0.00027945,3]
[368471227,1751187085365,-1766.09,0.00027945,3]
[368471228,1751187085374,-490.0,0.00027945,3]
[368471229,1751187085383,-490.0,0.00027945,3]
[368471230,1751187085392,-490.0,0.00027945,3]
[368471231,1751187085402,-490.0,0.00027945,3]
[368471232,1751187085411,-1686.93,0.00027945,3]
[368471233,1751187085420,-490.0,0.00027945,3]
[368471234,1751187085430,-750.88,0.00027945,3]
[368471235,1751187085439,-4260.42,0.00027945,3]
[368471236,1751187085450,-490.0,0.00027945,3]
[368471237,1751187085459,-2265.71,0.00027945,3]
[368471238,1751187085468,-403.77053278,0.00027945,3]
[368471239,1751187085477,-579.54,0.00027945,3]
[368471240,1751187085486,-490.0,0.00027945,3]
[368471241,1751187085495,-2836.85,0.00027945,3]
[368471242,1751187085504,-2913.67,0.00027945,3]
[368471243,1751187085513,-2914.76,0.00027945,3]
[368471244,1751187085523,-490.0,0.00027945,3]
[368471245,1751187085533,-1751.63,0.00027945,3]
[368471246,1751187085542,-1508.1,0.00027945,3]
[368471247,1751187085552,-226.3614531,0.00027945,3]
[368471248,1751187085561,-490.0,0.00027945,3]
[368471249,1751187085570,-1011.77,0.00027945,3]
[368471250,1751187085580,-2597.62,0.00027945,3]
[368471251,1751187085589,-3030.69,0.00027945,3]
[368471252,1751187085599,-1082.84,0.00027945,3]
[368471253,1751187085607,-696.61,0.00027945,3]
[368471254,1751187085616,-719.53,0.00027945,3]
[368471255,1751187085625,-497.78,0.00027945,3]
[368471256,1751187085633,-490.0,0.00027945,3]
[368471257,1751187085643,-1353.87,0.00027945,3]
[368471258,1751187085652,-490.0,0.00027945,3]
[368471259,1751187085661,-490.0,0.00027945,3]
[368471260,1751187085670,-695.06,0.00027945,3]
[368471261,1751187085680,-2030.34,0.00027945,3]
[368471262,1751187085690,-1991.05,0.00027945,3]
[368471263,1751187085698,-2200.4,0.00027945,3]
[368471264,1751187085707,-3392.4,0.00027945,3]
[368471265,1751187085716,-1466.31,0.00027945,3]
[368471266,1751187085725,-490.0,0.00027945,3]
[368471267,1751187085734,-965.17,0.00027945,3]
[368471268,1751187085743,-490.0,0.00027945,3]
[368471269,1751187085752,-1510.82,0.00027945,3]
[368471270,1751187085762,-998.05,0.00027945,3]
[368471271,1751187085771,-490.0,0.00027945,3]
[368471272,1751187085779,-2240.85,0.00027945,3]
[368471273,1751187085789,-855.46,0.00027945,3]
[368471274,1751187085798,-3337.27,0.00027945,3]
[368471275,1751187085808,-2642.65,0.00027945,3]
[368471276,1751187085817,-490.0,0.00027945,3]
[368471277,1751187085826,-714.61,0.00027945,3]
[368471278,1751187085835,-490.0,0.00027945,3]
[368471279,1751187085844,-4035.63,0.00027945,3]
[368471280,1751187085854,-1283.37,0.00027945,3]
[368471281,1751187085863,-1347.72,0.00027945,3]
[368471282,1751187085874,-1562.17,0.00027945,3]
[368471283,1751187085883,-1705.38,0.00027945,3]
[368471284,1751187085892,-922.75,0.00027945,3]
[368471285,1751187085901,-490.0,0.00027945,3]
[368471286,1751187085911,-490.0,0.00027945,3]
[368471287,1751187085920,-579.77,0.00027945,3]
[368471288,1751187085929,-490.0,0.00027945,3]
[368471289,1751187085938,-632.4,0.00027945,3]
[368471290,1751187085949,-490.0,0.00027945,3]
[368471291,1751187085958,-490.0,0.00027945,3]
[368471292,1751187085967,-4341.33,0.00027945,3]
[368471293,1751187085976,-490.0,0.00027945,3]
[368471294,1751187085986,-2539.0,0.00027945,3]
[368471295,1751187085994,-5021.31,0.00027945,3]
[368471296,1751187086003,-607.58,0.00027945,3]
[368471297,1751187086012,-1973.65,0.00027945,3]
[368471298,1751187086021,-11241.88,0.00027945,3]
[368471299,1751187086030,-2530.49,0.00027945,3]
[368471300,1751187086039,-490.0,0.00027945,3]
[368471301,1751187086048,-1307.13,0.00027945,3]
[368471302,1751187086057,-2268.48,0.00027945,3]
[368471303,1751187086066,-3011.61,0.00027945,3]
[368471304,1751187086075,-490.0,0.00027945,3]
[368471305,1751187086084,-490.0,0.00027945,3]
[368471306,1751187086093,-490.0,0.00027945,3]